fUST/lending_fUST_20241119
["ID","MTS","AMOUNT","RATE_DAILY","PERIOD"]
[342540637,1731959434074,-24138.63,0.00028761,10]
[342540639,1731959434084,-200.0,0.00028764,3]
[342540641,1731959434094,-151.0,0.00028771,7]
[342540643,1731959434104,-317.97194187,0.00028774,2]
[342540645,1731959434114,-151.0,0.00028775,7]
[342540647,1731959434124,-151.0,0.00028775,7]
[342540649,1731959434134,-157.95812,0.00028775,7]
[342540651,1731959434144,-151.0,0.00028775,7]
[342540653,1731959434153,-151.0,0.00028775,7]
[342540655,1731959434163,-151.0,0.00028775,7]
[342540657,1731959434173,-151.0,0.00028775,7]
[342540659,1731959434185,-151.0,0.00028775,7]
[342540661,1731959434194,-151.0,0.00028775,7]
[342540663,1731959434204,-151.0,0.00028775,7]
[342540664,1731959434214,-151.0,0.00028775,7]
[342540666,1731959434224,-151.0,0.00028775,7]
[342540668,1731959434235,-151.0,0.00028775,7]
[342540670,1731959434245,-151.0,0.00028775,7]
[342540672,1731959434255,-151.0,0.00028775,7]
[342540674,1731959434265,-151.0,0.00028775,7]
[342540676,1731959434274,-243.192664,0.00028775,7]
[342540678,1731959434283,-151.0,0.00028775,7]
[342540680,1731959434292,-151.0,0.00028775,7]
[342540682,1731959434302,-151.0,0.00028775,7]
[342540684,1731959434311,-151.0,0.00028775,7]
[342540686,1731959434322,-151.0,0.00028775,7]
[342540688,1731959434331,-151.0,0.00028775,7]
[342540690,1731959434341,-151.0,0.00028775,7]
[342540691,1731959434351,-151.0,0.00028775,7]
[342540693,1731959434360,-151.0,0.00028775,7]
[342540695,1731959434370,-154.006172,0.00028775,7]
[342540697,1731959434380,-879.579808,0.00028775,7]
[342540699,1731959434389,-879.579808,0.00028775,7]
[342540701,1731959434399,-879.579808,0.00028775,7]
[342540703,1731959434409,-879.579808,0.00028775,7]
[342540705,1731959434418,-879.579808,0.00028775,7]
[342540707,1731959434431,-879.579808,0.00028775,7]
[342540709,1731959434440,-879.579808,0.00028775,7]
[342540711,1731959434450,-879.579808,0.00028775,7]
[342540713,1731959434460,-879.579808,0.00028775,7]
[342540715,1731959434470,-879.579808,0.00028775,7]
[342540716,1731959434480,-879.579808,0.00028775,7]
[342540719,1731959434491,-879.579808,0.00028775,7]
[342540720,1731959434501,-879.579808,0.00028775,7]
[342540722,1731959434511,-879.579808,0.00028775,7]
[342540724,1731959434520,-879.579808,0.00028775,7]
[342540726,1731959434531,-879.579808,0.00028775,7]
[342540728,1731959434540,-879.579808,0.00028775,7]
[342540730,1731959434550,-879.579808,0.00028775,7]
[342540732,1731959434560,-879.579808,0.00028775,7]
[342540734,1731959434569,-879.57979981,0.00028775,7]
[342540736,1731959434578,-151.0,0.00028775,7]
[342540738,1731959434588,-151.0,0.00028775,7]
[342540740,1731959434597,-151.0,0.00028775,7]
[342540742,1731959434607,-204.825339,0.00028775,7]
[342540744,1731959434616,-151.0,0.00028775,7]
[342540746,1731959434626,-151.0,0.00028775,7]
[342540747,1731959434637,-151.0,0.00028775,7]
[342540749,1731959434646,-151.0,0.00028775,7]
[342540751,1731959434656,-151.0,0.00028775,7]
[342540753,1731959434665,-176.37854705,0.00028775,7]
[342540755,1731959434677,-151.0,0.00028775,7]
[342540757,1731959434686,-151.0,0.00028775,7]
[342540759,1731959434696,-154.277642,0.00028775,7]
[342540761,1731959434706,-367.45302067,0.00028775,2]
[342540763,1731959434716,-276.16853824,0.00028775,2]
[342540765,1731959434725,-172.0158878,0.00028775,2]
[342540767,1731959434735,-172.0158878,0.00028775,2]
[342540769,1731959434745,-470500.08587369,0.00028775,10]
[342540770,1731959434759,-4539.55320966,0.00028775,10]
[342541277,1731959440349,-553.46,0.000231,2]
[342541279,1731959440360,-500.0,0.00023101,2]
[342541281,1731959440369,-553.46,0.00023374,2]
[342541283,1731959440378,-500.0,0.00023375,2]
[342541285,1731959440388,-553.46,0.00023648,2]
[342541287,1731959440397,-500.0,0.00023649,2]
[342541289,1731959440406,-553.46,0.00023922,2]
[342541291,1731959440415,-500.0,0.00023923,2]
[342541293,1731959440424,-553.46,0.00024196,2]
[342541295,1731959440435,-500.0,0.00024197,2]
[342541297,1731959440444,-553.46,0.0002447,2]
[342541299,1731959440453,-419.13999999,0.00024744,2]
[342541607,1731959443531,-134.32000001,0.00024744,2]
[342541609,1731959443541,-553.46,0.00025018,2]
[342541611,1731959443551,-553.46,0.00025292,2]
[342541613,1731959443561,-553.46,0.00025566,2]
[342541615,1731959443571,-553.46,0.0002584,2]
[342541617,1731959443581,-553.46,0.00026114,2]
[342541619,1731959443591,-553.46,0.00026388,2]
[342541621,1731959443601,-553.46,0.00026662,2]
[342541623,1731959443611,-349.74387803,0.00026936,2]
[342541626,1731959443624,-203.71612197,0.00026936,2]
[342541627,1731959443634,-553.46,0.0002721,2]
[342541629,1731959443644,-553.46,0.00027484,2]
[342541632,1731959443654,-323.64628037,0.00027758,2]
[342541634,1731959443666,-229.81371963,0.00027758,2]
[342541637,1731959443676,-553.46,0.00028032,2]
[342541639,1731959443689,-553.46,0.00028306,2]
[342541641,1731959443699,-553.46,0.0002858,2]
[342541643,1731959443709,-1926.3442298,0.00028765,10]
[342541912,1731959446681,-500.0,0.000231,2]
[342541913,1731959446695,-17489.8458,0.00028765,10]
[342547331,1731960335159,-163.395699,0.00013973,2]
[342547332,1731960335184,-43.03967313,0.000191,2]
[342547334,1731960549125,-163.395699,0.00013973,2]
[342547335,1731960549148,-150.0,0.000192,2]
[342547336,1731960549170,-500.0,0.0001987,2]
[342547337,1731960549196,-6659.74615502,0.0002,2]
[342547339,1731960568107,-355.87884498,0.0002,2]
[342547340,1731960568137,-134.12115502,0.00021939,2]
[342547414,1731960632755,-38.20166098,0.00021939,2]
[342547416,1731960632766,-500.0,0.000231,2]
[342547418,1731960632775,-500.0,0.00023101,2]
[342547420,1731960632785,-500.0,0.00023101,2]
[342547422,1731960632795,-281.69303127,0.00023375,2]
[342547424,1731960632805,-500.0,0.00023375,2]
[342547426,1731960632814,-163.395699,0.00023435,2]
[342547428,1731960632824,-149.06460875,0.00023546,2]
[342547434,1731960632875,-259.40925658,0.00023546,2]
[342547436,1731960632884,-42.24396264,0.00023643,2]
[342547926,1731960638839,-257.75603736,0.00023643,2]
[342547929,1731960638850,-300.0,0.00023643,2]
[342547931,1731960638860,-721.86,0.00023644,2]
[342547933,1731960638870,-500.0,0.00023644,2]
[342547934,1731960638879,-500.0,0.00023644,2]
[342547936,1731960638889,-500.0,0.00023644,2]
[342547939,1731960638899,-500.0,0.00023644,2]
[342547941,1731960638909,-960.60966236,0.00023644,2]
[342547943,1731960638922,-2308.75657563,0.00023644,2]
[342547945,1731960638931,-1273.82,0.00023644,2]
[342547947,1731960638941,-500.0,0.00023644,2]
[342547949,1731960638951,-500.0,0.00023644,2]
[342547951,1731960638961,-438.38,0.00023645,2]
[342547953,1731960638971,-500.0,0.00023645,2]
[342547955,1731960638980,-327.21050582,0.00023645,2]
[342547957,1731960638990,-500.0,0.00023645,2]
[342547959,1731960639000,-541.34358307,0.00023645,2]
[342547961,1731960639010,-500.0,0.00023645,2]
[342547962,1731960639020,-1789.5,0.00023645,2]
[342547963,1731960639030,-500.0,0.00023645,2]
[342547964,1731960639039,-729.11,0.00023645,2]
[342547965,1731960639048,-500.0,0.00023645,2]
[342547966,1731960639058,-373.44549434,0.00023645,2]
[342547967,1731960639069,-500.0,0.00023646,2]
[342547968,1731960639078,-1000.0,0.00023646,5]
[342547969,1731960639087,-500.0,0.00023646,2]
[342547971,1731960639096,-559.91,0.00023646,2]
[342547973,1731960639106,-2336.0,0.00023646,2]
[342547975,1731960639116,-216.8594944,0.00023646,2]
[342547977,1731960639125,-500.0,0.00023646,2]
[342547979,1731960639135,-392.26,0.00023646,2]
[342547981,1731960639147,-500.0,0.00023646,2]
[342547983,1731960639157,-500.0,0.00023649,2]
[342547985,1731960639167,-721.86,0.00023918,2]
[342547987,1731960639177,-467.18346797,0.00023918,2]
[342547989,1731960639187,-500.0,0.00023918,2]
[342547992,1731960639199,-465.02884986,0.00023918,2]
[342547993,1731960639214,-1273.82,0.00023918,2]
[342547996,1731960639227,-500.0,0.00023918,2]
[342547998,1731960639236,-500.0,0.00023918,2]
[342547999,1731960639245,-500.0,0.00023919,2]
[342548001,1731960639256,-500.0,0.00023919,2]
[342548004,1731960639266,-1789.5,0.00023919,2]
[342548006,1731960639277,-500.0,0.00023919,2]
[342548008,1731960639287,-729.11,0.00023919,2]
[342548010,1731960639298,-500.0,0.00023919,2]
[342548012,1731960639309,-649.63,0.0002392,2]
[342548014,1731960639324,-500.0,0.0002392,2]
[342548016,1731960639333,-500.0,0.0002392,2]
[342548018,1731960639343,-500.0,0.0002392,2]
[342548020,1731960639352,-500.0,0.00023923,2]
[342548022,1731960639362,-184.537,0.00024167,6]
[342548024,1731960639371,-721.86,0.00024192,2]
[342548026,1731960639382,-500.0,0.00024192,2]
[342548028,1731960639392,-1273.82,0.00024192,2]
[342548030,1731960639401,-500.0,0.00024192,2]
[342548032,1731960639411,-297.63480626,0.00024192,2]
[342548034,1731960639420,-500.0,0.00024193,2]
[342548036,1731960639429,-500.0,0.00024193,2]
[342548038,1731960639441,-1789.5,0.00024193,2]
[342548041,1731960639451,-500.0,0.00024193,2]
[342548042,1731960639460,-729.11,0.00024193,2]
[342548045,1731960639471,-552.09345519,0.00024193,2]
[342548046,1731960639481,-500.0,0.00024194,2]
[342548048,1731960639491,-500.0,0.00024194,2]
[342548051,1731960639501,-242.99226126,0.00024194,2]
[342548053,1731960639510,-385.08,0.00024197,2]
[342548055,1731960639520,-588.66035476,0.00024267,2]
[342548057,1731960639529,-500.22012842,0.00024267,2]
[342548059,1731960639539,-201.95337546,0.00024267,2]
[342548061,1731960639549,-955.25,0.00024279,15]
[342548063,1731960639560,-408.47386527,0.00024288,2]
[342548065,1731960639569,-530.0,0.00024366,2]
[342548067,1731960639579,-2385.0,0.00024366,2]
[342548069,1731960639588,-1110.0,0.00024366,2]
[342548071,1731960639597,-649.183,0.00024376,2]
[342548073,1731960639609,-151.109,0.00024376,2]
[342548075,1731960639618,-3200.0,0.00024376,2]
[342548077,1731960639628,-721.86,0.00024466,2]
[342548079,1731960639638,-500.0,0.00024466,2]
[342548081,1731960639647,-1273.82,0.00024466,2]
[342548083,1731960639657,-500.0,0.00024466,2]
[342548085,1731960639666,-500.0,0.00024467,2]
[342548087,1731960639675,-500.0,0.00024467,2]
[342548089,1731960639685,-1789.5,0.00024467,2]
[342548091,1731960639697,-500.0,0.00024467,2]
[342548093,1731960639707,-729.11,0.00024467,2]
[342548095,1731960639717,-500.0,0.00024468,2]
[342548097,1731960639727,-500.0,0.00024468,2]
[342548099,1731960639737,-500.0,0.00024705,2]
[342548101,1731960639746,-500.0,0.00024705,2]
[342548103,1731960639756,-200.76133412,0.00024705,2]
[342548105,1731960639766,-501.41789002,0.00024705,2]
[342548107,1731960639775,-721.86,0.0002474,2]
[342548109,1731960639785,-500.0,0.0002474,2]
[342548111,1731960639794,-1273.82,0.0002474,2]
[342548113,1731960639803,-500.0,0.0002474,2]
[342548115,1731960639814,-500.0,0.00024741,2]
[342548117,1731960639824,-500.0,0.00024741,2]
[342548119,1731960639833,-1789.5,0.00024741,2]
[342548121,1731960639844,-500.0,0.00024741,2]
[342548123,1731960639854,-729.11,0.00024741,2]
[342548125,1731960639864,-500.0,0.00024742,2]
[342548127,1731960639873,-500.0,0.00024742,2]
[342548130,1731960639883,-500.0,0.00024796,2]
[342548132,1731960639892,-500.0,0.00024796,2]
[342548134,1731960639902,-500.74073036,0.000248,2]
[342548136,1731960639912,-500.0,0.00024817,2]
[342548138,1731960639922,-500.0,0.00024868,2]
[342548140,1731960639932,-467.81359663,0.00024868,2]
[342548142,1731960639945,-500.0,0.00024868,2]
[342548145,1731960639956,-326.91875171,0.00024868,2]
[342548147,1731960639966,-201.9543109,0.0002487,2]
[342548151,1731960639980,-500.0,0.0002487,2]
[342548153,1731960639990,-500.0,0.00024945,7]
[342548155,1731960640000,-3802.07232939,0.00025,2]
[342548157,1731960640011,-672.14,0.00025011,3]
[342548159,1731960640020,-721.86,0.00025014,2]
[342548161,1731960640030,-500.0,0.00025014,2]
[342548163,1731960640039,-1273.82,0.00025014,2]
[342548165,1731960640049,-500.0,0.00025014,2]
[342548167,1731960640059,-500.0,0.00025015,2]
[342548169,1731960640069,-500.0,0.00025015,2]
[342548171,1731960640079,-1789.5,0.00025015,2]
[342548173,1731960640089,-500.0,0.00025015,2]
[342548175,1731960640099,-729.11,0.00025015,2]
[342548177,1731960640109,-500.0,0.00025016,2]
[342548179,1731960640119,-500.0,0.00025016,2]
[342548181,1731960640128,-224.03,0.00025021,3]
[342548183,1731960640139,-408.47386527,0.00025031,2]
[342548185,1731960640148,-417.54926709,0.00025143,2]
[342548187,1731960640158,-500.0,0.00025143,2]
[342548189,1731960640168,-500.92778353,0.00025147,2]
[342548191,1731960640178,-500.0,0.00025176,2]
[342548194,1731960640189,-500.0,0.00025176,2]
[342548196,1731960640200,-501.49891268,0.00025176,2]
[342548213,1731960640356,-3768.59922634,0.00025279,10]
[342548223,1731960640440,-876.758779,0.00024609,15]
[342548225,1731960640451,-8663.54875141,0.00025279,10]
[342548227,1731960640463,-4447.34202225,0.00025279,10]
[342548229,1731960640473,-721.86,0.00025288,2]
[342548231,1731960640482,-500.0,0.00025288,2]
[342548233,1731960640492,-1273.82,0.00025288,2]
[342548235,1731960640501,-500.0,0.00025288,2]
[342548237,1731960640511,-500.0,0.00025289,2]
[342548239,1731960640520,-500.0,0.00025289,2]
[342548241,1731960640529,-1789.5,0.00025289,2]
[342548243,1731960640539,-500.0,0.00025289,2]
[342548245,1731960640549,-729.11,0.00025289,2]
[342548247,1731960640558,-196.23705222,0.00025289,2]
[342548249,1731960640568,-491.40085818,0.00025289,2]
[342548251,1731960640578,-262.46416587,0.00025289,2]
[342548254,1731960640588,-325.84890479,0.0002529,2]
[342548556,1731960643647,-174.15109521,0.0002529,2]
[342548558,1731960643657,-424.25632094,0.0002529,2]
[342549804,1731961651100,-164.582046,0.00013973,2]
[342549805,1731961651129,-268.1009802,0.000199,2]
[342549813,1731961756243,-1234.93882338,0.00019852,2]
[342549814,1731961756264,-838.86653348,0.000199,2]
[342549815,1731961756285,-300.0,0.00019989,2]
[342549816,1731961756305,-31449.32943062,0.0001999,2]
[342549817,1731961756500,-150.0,0.0002,2]
[342549818,1731961756523,-5792.55515752,0.0002,2]
[342549819,1731961756552,-1223.06984248,0.0002,2]
[342549820,1731961756577,-165.424004,0.00021266,2]
[342549821,1731961756599,-24900.0,0.00021444,2]
[342549822,1731961756621,-3000.0,0.00021466,2]
[342549823,1731961756643,-163.278985,0.00021717,2]
[342549824,1731961756667,-2773.2679078,0.00021867,2]
[342549825,1731961756689,-420.0,0.00021988,2]
[342549826,1731961756719,-370.0,0.00022,2]
[342549827,1731961756743,-370.0,0.00022192,2]
[342549828,1731961756764,-10260.99733484,0.00023,2]
[342549829,1731961756784,-370.0,0.00023014,2]
[342549830,1731961756804,-402.57211889,0.00023544,2]
[342549831,1731961756825,-621.07,0.00023642,2]
[342549832,1731961756848,-500.0,0.00023642,2]
[342549833,1731961756871,-500.0,0.00023642,2]
[342549834,1731961756892,-5000.0,0.00023643,2]
[342549835,1731961756914,-1188.94,0.00023643,2]
[342549836,1731961756936,-500.0,0.00023643,2]
[342549837,1731961756961,-500.0,0.00023643,2]
[342549838,1731961756984,-500.0,0.00023643,2]
[342549839,1731961757005,-544.37,0.00023643,2]
[342549840,1731961757027,-500.0,0.00023643,2]
[342549841,1731961757047,-500.0,0.00023644,2]
[342549842,1731961757067,-458.51734225,0.00023644,2]
[342549843,1731961757088,-500.0,0.00023644,2]
[342549844,1731961757108,-500.0,0.00023644,2]
[342549845,1731961757128,-338.05576298,0.00023644,2]
[342549846,1731961757149,-500.0,0.00023644,2]
[342549847,1731961757169,-518.59770647,0.00023644,2]
[342549848,1731961757189,-500.0,0.00023644,2]
[342549849,1731961757215,-521.84673258,0.00023644,2]
[342549850,1731961757236,-500.0,0.00023644,2]
[342549851,1731961757256,-500.0,0.00023644,2]
[342549852,1731961757276,-506.34277529,0.00023644,2]
[342549853,1731961757296,-632.45,0.00023644,2]
[342549854,1731961757317,-500.0,0.00023644,2]
[342549855,1731961757338,-500.0,0.00023644,2]
[342549856,1731961757358,-649.03,0.00023644,2]
[342549857,1731961757378,-500.0,0.00023644,2]
[342549858,1731961757398,-500.0,0.00023644,2]
[342549859,1731961757419,-500.0,0.00023644,2]
[342549860,1731961757440,-595.16,0.00023644,2]
[342549861,1731961757465,-500.0,0.00023644,2]
[342549862,1731961757486,-500.0,0.00023644,2]
[342549863,1731961757507,-500.0,0.00023644,2]
[342549864,1731961757527,-500.0,0.00023644,2]
[342549865,1731961757549,-1282.12,0.00023644,2]
[342549866,1731961757573,-408.90559468,0.00023644,2]
[342549867,1731961757594,-753.1,0.00023644,2]
[342549868,1731961757616,-283.1405056,0.00023644,2]
[342549869,1731961757637,-500.0,0.00023644,2]
[342549870,1731961757659,-500.0,0.00023645,2]
[342549871,1731961757680,-540.38,0.00023645,2]
[342549872,1731961757714,-500.0,0.00023645,2]
[342549873,1731961757739,-500.0,0.00023645,2]
[342549874,1731961757761,-621.07,0.00023916,2]
[342549875,1731961757789,-500.0,0.00023916,2]
[342549876,1731961757812,-5000.0,0.00023917,2]
[342549877,1731961757836,-1188.94,0.00023917,2]
[342549878,1731961757859,-500.0,0.00023917,2]
[342549879,1731961757882,-500.0,0.00023917,2]
[342549880,1731961757906,-544.37,0.00023917,2]
[342549881,1731961757930,-500.0,0.00023917,2]
[342549882,1731961757951,-474.21960183,0.00023918,2]
[342549883,1731961757976,-644.74990223,0.00023918,2]
[342549884,1731961758000,-184.537,0.00023918,5]
[342549885,1731961758022,-500.0,0.00023918,2]
[342549886,1731961758045,-496.08,0.00023918,2]
[342549887,1731961758068,-257.00773874,0.00023918,2]
[342549888,1731961758092,-500.0,0.00023918,2]
[342549889,1731961758115,-595.16,0.00023918,2]
[342549890,1731961758140,-1282.12,0.00023918,2]
[342549891,1731961758163,-753.1,0.00023918,2]
[342549892,1731961758184,-500.0,0.00023919,2]
[342549893,1731961758209,-376.0,0.00024164,2]
[342549894,1731961758230,-587.0,0.00024187,2]
[342549895,1731961758254,-621.07,0.0002419,2]
[342549896,1731961758277,-500.0,0.0002419,2]
[342549897,1731961758302,-1188.94,0.00024191,2]
[342549898,1731961758326,-500.0,0.00024191,2]
[342549899,1731961758350,-500.0,0.00024191,2]
[342549900,1731961758375,-544.37,0.00024191,2]
[342549901,1731961758400,-500.0,0.00024191,2]
[342549902,1731961758423,-500.0,0.00024192,2]
[342549903,1731961758446,-405.59756264,0.00024192,2]
[342549904,1731961758472,-595.16,0.00024192,2]
[342549905,1731961758496,-1282.12,0.00024192,2]
[342549906,1731961758520,-753.1,0.00024192,2]
[342549907,1731961758543,-500.0,0.00024193,2]
[342549908,1731961758568,-2648.40048344,0.00024198,2]
[342549909,1731961758590,-164.582046,0.00024224,2]
[342549910,1731961758612,-402.57211886,0.00024312,2]
[342549911,1731961758634,-621.07,0.00024464,2]
[342549912,1731961758658,-500.0,0.00024464,2]
[342549913,1731961758682,-1188.94,0.00024465,2]
[342549914,1731961758704,-500.0,0.00024465,2]
[342549915,1731961758730,-500.0,0.00024465,2]
[342549916,1731961758753,-544.37,0.00024465,2]
[342549917,1731961758775,-500.0,0.00024465,2]
[342549918,1731961758795,-500.0,0.00024466,2]
[342549919,1731961758817,-595.16,0.00024466,2]
[342549920,1731961758840,-1282.12,0.00024466,2]
[342549921,1731961758862,-753.1,0.00024466,2]
[342549922,1731961758884,-500.0,0.00024467,2]
[342549923,1731961758905,-2501.51623855,0.0002464,2]
[342549924,1731961758927,-621.07,0.00024738,2]
[342549925,1731961758952,-500.0,0.00024738,2]
[342549926,1731961758978,-1188.94,0.00024739,2]
[342549927,1731961759001,-500.0,0.00024739,2]
[342549928,1731961759026,-500.0,0.00024739,2]
[342549929,1731961759050,-544.37,0.00024739,2]
[342549930,1731961759072,-500.0,0.00024739,2]
[342549931,1731961759093,-500.0,0.0002474,2]
[342549932,1731961759115,-595.16,0.0002474,2]
[342549933,1731961759141,-1282.12,0.0002474,2]
[342549934,1731961759164,-753.1,0.0002474,2]
[342549935,1731961759185,-500.0,0.00024741,2]
[342549936,1731961759210,-879.4,0.00024761,15]
[342549937,1731961759233,-262.38503296,0.00024942,2]
[342549938,1731961759256,-500.0,0.00024942,2]
[342549939,1731961759278,-216.02145019,0.00024942,2]
[342549940,1731961759300,-623.30369075,0.00024942,2]
[342549941,1731961759322,-583.91587119,0.00024942,2]
[342549942,1731961759344,-500.0,0.00024942,2]
[342549943,1731961759366,-506.95754395,0.00024942,2]
[342549944,1731961759388,-500.0,0.00024942,2]
[342549945,1731961759410,-552.05671275,0.00024942,2]
[342549946,1731961759433,-500.0,0.00024942,2]
[342549947,1731961759458,-597.6528125,0.00024942,2]
[342549948,1731961759487,-500.0,0.00024942,2]
[342549949,1731961759510,-500.0,0.00024942,2]
[342549950,1731961759532,-500.0,0.00024942,2]
[342549951,1731961759555,-500.0,0.00024945,7]
[342549952,1731961759580,-500.0,0.00025,2]
[342549953,1731961759602,-327.47067678,0.00025,2]
[342549954,1731961759623,-500.0,0.00025,2]
[342549955,1731961759645,-1253.58049668,0.00025,2]
[342549956,1731961759667,-500.0,0.00025003,2]
[342549957,1731961759691,-500.0,0.00025003,2]
[342549958,1731961759718,-500.0,0.00025003,2]
[342549959,1731961759740,-300.0,0.00025003,2]
[342549960,1731961759761,-500.0,0.00025003,2]
[342549961,1731961759784,-500.0,0.00025003,2]
[342549962,1731961759804,-167.63384103,0.00025003,2]
[342549963,1731961759826,-500.0,0.00025003,2]
[342549964,1731961759848,-500.0,0.00025003,2]
[342549965,1731961760000,-500.0,0.00025003,2]
[342549966,1731961760024,-500.0,0.00025003,2]
[342549967,1731961760046,-164.30251567,0.00025003,2]
[342549968,1731961760068,-500.0,0.00025003,2]
[342549969,1731961760089,-360.68223436,0.00025003,2]
[342549970,1731961760110,-500.0,0.00025003,2]
[342549971,1731961760132,-500.0,0.00025003,2]
[342549972,1731961760152,-500.0,0.00025003,2]
[342549973,1731961760174,-500.0,0.00025003,2]
[342549974,1731961760194,-500.0,0.00025003,2]
[342549975,1731961760221,-500.0,0.00025003,2]
[342549976,1731961760242,-500.0,0.00025003,2]
[342549977,1731961760263,-500.0,0.00025003,2]
[342549978,1731961760283,-500.0,0.00025003,2]
[342549979,1731961760305,-500.0,0.00025003,2]
[342549980,1731961760326,-500.0,0.00025003,2]
[342549981,1731961760346,-500.0,0.00025003,2]
[342549982,1731961760367,-500.0,0.00025003,2]
[342549983,1731961760388,-580.0,0.00025003,2]
[342549984,1731961760409,-500.0,0.00025003,2]
[342549985,1731961760430,-500.0,0.00025003,2]
[342549986,1731961760450,-500.0,0.00025003,2]
[342549987,1731961760473,-500.0,0.00025003,2]
[342549988,1731961760497,-500.0,0.00025003,2]
[342549989,1731961760519,-500.0,0.00025003,2]
[342549990,1731961760539,-500.0,0.00025003,2]
[342549991,1731961760562,-500.0,0.00025003,2]
[342549992,1731961760595,-500.0,0.00025003,2]
[342549993,1731961760620,-500.0,0.00025003,2]
[342549994,1731961760652,-500.0,0.00025003,2]
[342549995,1731961760682,-500.0,0.00025003,2]
[342549996,1731961760710,-500.0,0.00025003,2]
[342549997,1731961760738,-500.0,0.00025003,2]
[342549998,1731961760760,-500.0,0.00025003,2]
[342549999,1731961760783,-500.0,0.00025003,2]
[342550000,1731961760807,-500.0,0.00025003,2]
[342550001,1731961760830,-500.0,0.00025003,2]
[342550002,1731961760852,-500.0,0.00025003,2]
[342550003,1731961760876,-500.0,0.00025003,2]
[342550004,1731961760905,-500.0,0.00025003,2]
[342550005,1731961760927,-500.0,0.00025003,2]
[342550006,1731961760949,-500.0,0.00025003,2]
[342550007,1731961760977,-500.0,0.00025003,2]
[342550008,1731961760999,-515.0,0.00025003,2]
[342550009,1731961761022,-500.0,0.00025003,2]
[342550010,1731961761044,-500.0,0.00025003,2]
[342550011,1731961761065,-500.0,0.00025003,2]
[342550012,1731961761087,-500.0,0.00025003,2]
[342550013,1731961761108,-500.0,0.00025003,2]
[342550014,1731961761129,-500.0,0.00025003,2]
[342550015,1731961761150,-500.0,0.00025003,2]
[342550016,1731961761171,-500.0,0.00025003,2]
[342550017,1731961761193,-500.0,0.00025003,2]
[342550018,1731961761220,-500.0,0.00025003,2]
[342550019,1731961761242,-500.0,0.00025003,2]
[342550020,1731961761263,-621.07,0.00025012,2]
[342550021,1731961761286,-500.0,0.00025012,2]
[342550022,1731961761307,-1188.94,0.00025013,2]
[342550023,1731961761330,-500.0,0.00025013,2]
[342550024,1731961761353,-647.61,0.00025013,3]
[342550025,1731961761377,-500.0,0.00025013,2]
[342550026,1731961761400,-544.37,0.00025013,2]
[342550027,1731961761424,-500.0,0.00025013,2]
[342550028,1731961761445,-500.0,0.00025014,2]
[342550029,1731961761487,-595.16,0.00025014,2]
[342550030,1731961761509,-1282.12,0.00025014,2]
[342550031,1731961761531,-753.1,0.00025014,2]
[342550032,1731961761553,-500.0,0.00025015,2]
[342550033,1731961761585,-137.76103555,0.00025023,3]
[342550034,1731961774121,-6924.8662,0.0002,2]
[342550097,1731961832836,-300.0,0.00019999,2]